[Event "Titled Tuesday Blitz October 11 Early 2022"]
[White "Jovic, Stanoje"]
[Black "Seletsky, Grigory"]
[WhiteFideId "905020"]
[BlackFideId "14112191"]
[WhiteElo "2238"]
[BlackElo "2492"]
[Result "1-0"]
[Round "09"]
[TimeControl "180+1"]
[Date "2022.10.12"]
[WhiteClock "0:01:48"]
[BlackClock "0:01:06"]

1. c4 {[%clk 0:03:00]}  c6 {[%clk 0:02:55]} 2. e4 {[%clk 0:03:00]}  d5 {[%clk 0:02:54]} 3. exd5 {[%clk 0:03:01]}  cxd5 {[%clk 0:02:54]} 4. cxd5 {[%clk 0:03:02]}  Nf6 {[%clk 0:02:54]} 5. Qa4+ {[%clk 0:03:02]}  Nbd7 {[%clk 0:02:49]} 6. Bc4 {[%clk 0:03:01]}  g6 {[%clk 0:02:48]} 7. d3 {[%clk 0:03:01]}  Bg7 {[%clk 0:02:48]} 8. Nc3 {[%clk 0:03:01]}  O-O {[%clk 0:02:48]} 9. Nf3 {[%clk 0:03:01]}  a6 {[%clk 0:02:48]} 10. Qa3 {[%clk 0:03:02]}  b5 {[%clk 0:02:20]} 11. Bxb5 {[%clk 0:02:59]}  Bb7 {[%clk 0:02:10]} 12. Bc6 {[%clk 0:02:56]}  Bxc6 {[%clk 0:01:56]} 13. dxc6 {[%clk 0:02:56]}  Nb6 {[%clk 0:01:51]} 14. O-O {[%clk 0:02:53]}  Nfd5 {[%clk 0:01:42]} 15. Bg5 {[%clk 0:02:44]}  h6 {[%clk 0:01:40]} 16. Bh4 {[%clk 0:02:36]}  g5 {[%clk 0:01:39]} 17. Bg3 {[%clk 0:02:36]}  Nxc3 {[%clk 0:01:39]} 18. bxc3 {[%clk 0:02:33]}  Qxd3 {[%clk 0:01:37]} 19. Qxe7 {[%clk 0:02:30]}  Nd5 {[%clk 0:01:34]} 20. Qb7 {[%clk 0:02:23]}  Nxc3 {[%clk 0:01:19]} 21. Be5 {[%clk 0:01:56]}  Ne2+ {[%clk 0:01:10]} 22. Kh1 {[%clk 0:01:54]}  Bxe5 {[%clk 0:01:10]} 23. Nxe5 {[%clk 0:01:53]}  Qd5 {[%clk 0:01:07]} 24. Nd7 {[%clk 0:01:49]}  Nf4 {[%clk 0:01:06]} 25. Nf6+ {[%clk 0:01:48]} 1-0


[Site "https://www.chess.com"]

[Event "Titled Tuesday Blitz October 11 Early 2022"]
[White "Kaidanov, Gregory"]
[Black "Shimanov, Aleksandr"]
[WhiteFideId "2008564"]
[BlackFideId "4198603"]
[WhiteElo "2660"]
[BlackElo "2605"]
[Result "0-1"]
[Round "09"]
[TimeControl "180+1"]
[Date "2022.10.11"]
[WhiteClock "0:00:03"]
[BlackClock "0:00:16"]

1. Nf3 {[%clk 0:03:00]}  d5 {[%clk 0:02:53]} 2. g3 {[%clk 0:03:00]}  Nd7 {[%clk 0:02:52]} 3. d4 {[%clk 0:02:59]}  Ngf6 {[%clk 0:02:51]} 4. Bg2 {[%clk 0:02:59]}  e6 {[%clk 0:02:51]} 5. O-O {[%clk 0:02:59]}  c6 {[%clk 0:02:50]} 6. Nbd2 {[%clk 0:02:57]}  Be7 {[%clk 0:02:47]} 7. c4 {[%clk 0:02:57]}  O-O {[%clk 0:02:47]} 8. Qc2 {[%clk 0:02:57]}  b6 {[%clk 0:02:46]} 9. e4 {[%clk 0:02:55]}  dxc4 {[%clk 0:02:46]} 10. Nxc4 {[%clk 0:02:54]}  Bb7 {[%clk 0:02:46]} 11. Bf4 {[%clk 0:02:26]}  c5 {[%clk 0:02:42]} 12. Rfe1 {[%clk 0:02:25]}  cxd4 {[%clk 0:02:40]} 13. Nd6 {[%clk 0:02:21]}  Bxd6 {[%clk 0:02:38]} 14. Bxd6 {[%clk 0:02:21]}  d3 {[%clk 0:02:38]} 15. Qxd3 {[%clk 0:02:17]}  Bxe4 {[%clk 0:02:31]} 16. Qd4 {[%clk 0:02:09]}  e5 {[%clk 0:02:04]} 17. Nxe5 {[%clk 0:02:02]}  Nxe5 {[%clk 0:01:55]} 18. Bxe5 {[%clk 0:01:58]}  Bxg2 {[%clk 0:01:53]} 19. Kxg2 {[%clk 0:01:53]}  Qd5+ {[%clk 0:01:49]} 20. Qxd5 {[%clk 0:01:48]}  Nxd5 {[%clk 0:01:50]} 21. Rad1 {[%clk 0:01:47]}  Rfd8 {[%clk 0:01:50]} 22. a3 {[%clk 0:01:37]}  f6 {[%clk 0:01:46]} 23. Bd4 {[%clk 0:01:37]}  Rd7 {[%clk 0:01:46]} 24. Kf3 {[%clk 0:01:17]}  Rad8 {[%clk 0:01:46]} 25. Be3 {[%clk 0:01:17]}  Kf7 {[%clk 0:01:42]} 26. Rd3 {[%clk 0:01:15]}  Ne7 {[%clk 0:01:30]} 27. Rxd7 {[%clk 0:01:10]}  Rxd7 {[%clk 0:01:30]} 28. Rc1 {[%clk 0:01:07]}  Ke6 {[%clk 0:01:30]} 29. Ke2 {[%clk 0:01:06]}  h5 {[%clk 0:01:29]} 30. f3 {[%clk 0:01:00]}  g5 {[%clk 0:01:21]} 31. h3 {[%clk 0:00:55]}  Nd5 {[%clk 0:01:16]} 32. Bd2 {[%clk 0:00:50]}  Re7 {[%clk 0:01:11]} 33. Kd3 {[%clk 0:00:44]}  Rd7 {[%clk 0:01:03]} 34. Ke2 {[%clk 0:00:43]}  Ne7 {[%clk 0:00:53]} 35. Rc4 {[%clk 0:00:38]}  Nf5 {[%clk 0:00:52]} 36. Be1 {[%clk 0:00:31]}  Nd4+ {[%clk 0:00:49]} 37. Kf2 {[%clk 0:00:30]}  Kd5 {[%clk 0:00:36]} 38. Rc8 {[%clk 0:00:26]}  Ke6 {[%clk 0:00:23]} 39. Bc3 {[%clk 0:00:25]}  Nb5 {[%clk 0:00:21]} 40. Rc6+ {[%clk 0:00:19]}  Rd6 {[%clk 0:00:21]} 41. Rxd6+ {[%clk 0:00:18]}  Nxd6 {[%clk 0:00:22]} 42. Ke3 {[%clk 0:00:18]}  Nf5+ {[%clk 0:00:21]} 43. Kf2 {[%clk 0:00:18]}  Ne7 {[%clk 0:00:21]} 44. g4 {[%clk 0:00:18]}  h4 {[%clk 0:00:21]} 45. Bd2 {[%clk 0:00:16]}  Nd5 {[%clk 0:00:21]} 46. Ke2 {[%clk 0:00:16]}  Ke5 {[%clk 0:00:21]} 47. Be3 {[%clk 0:00:09]}  Nf4+ {[%clk 0:00:17]} 48. Bxf4+ {[%clk 0:00:08]}  Kxf4 {[%clk 0:00:17]} 49. Kf2 {[%clk 0:00:08]}  b5 {[%clk 0:00:16]} 50. b3 {[%clk 0:00:05]}  a5 {[%clk 0:00:16]} 51. a4 {[%clk 0:00:03]}  b4 {[%clk 0:00:16]} 0-1


[Site "https://www.chess.com"]

[Event "Titled Tuesday Blitz October 11 Early 2022"]
[White "Kiseljova, Marya"]
[Black "Clawitter, Craig"]
[WhiteFideId "4155009"]
[BlackFideId "2023105"]
[WhiteElo "1931"]
[BlackElo "2281"]
[Result "0-1"]
[Round "09"]
[TimeControl "180+1"]
[Date "2022.10.12"]
[WhiteClock "0:00:28"]
[BlackClock "0:00:11"]

1. d4 {[%clk 0:03:00]}  e6 {[%clk 0:02:06]} 2. c4 {[%clk 0:02:57]}  Nf6 {[%clk 0:02:05]} 3. g3 {[%clk 0:02:55]}  d5 {[%clk 0:02:04]} 4. Nf3 {[%clk 0:02:55]}  Be7 {[%clk 0:02:04]} 5. Bg2 {[%clk 0:02:56]}  O-O {[%clk 0:02:04]} 6. O-O {[%clk 0:02:56]}  dxc4 {[%clk 0:02:05]} 7. Qc2 {[%clk 0:02:48]}  a6 {[%clk 0:02:05]} 8. Qxc4 {[%clk 0:02:48]}  b5 {[%clk 0:02:06]} 9. Qc2 {[%clk 0:02:43]}  Bb7 {[%clk 0:02:06]} 10. a4 {[%clk 0:02:38]}  Nc6 {[%clk 0:02:00]} 11. axb5 {[%clk 0:02:24]}  axb5 {[%clk 0:01:56]} 12. Rxa8 {[%clk 0:02:24]}  Qxa8 {[%clk 0:01:57]} 13. e3 {[%clk 0:02:19]}  Nxd4 {[%clk 0:01:48]} 14. exd4 {[%clk 0:01:57]}  Bxf3 {[%clk 0:01:48]} 15. Bxf3 {[%clk 0:01:51]}  Qxf3 {[%clk 0:01:48]} 16. Qxc7 {[%clk 0:01:48]}  Nd5 {[%clk 0:01:27]} 17. Qb7 {[%clk 0:01:29]}  h5 {[%clk 0:01:26]} 18. Nc3 {[%clk 0:01:19]}  h4 {[%clk 0:01:16]} 19. Nxd5 {[%clk 0:01:17]}  exd5 {[%clk 0:01:16]} 20. Qd7 {[%clk 0:00:58]}  Bf6 {[%clk 0:01:06]} 21. Be3 {[%clk 0:00:54]}  hxg3 {[%clk 0:00:44]} 22. hxg3 {[%clk 0:00:52]}  g6 {[%clk 0:00:37]} 23. Rc1 {[%clk 0:00:41]}  Kg7 {[%clk 0:00:13]} 24. Rc8 {[%clk 0:00:37]}  Rxc8 {[%clk 0:00:12]} 25. Qxc8 {[%clk 0:00:37]}  Qd1+ {[%clk 0:00:12]} 26. Kg2 {[%clk 0:00:37]}  Bxd4 {[%clk 0:00:12]} 27. Bxd4+ {[%clk 0:00:18]}  Qxd4 {[%clk 0:00:12]} 28. Qc2 {[%clk 0:00:18]}  Qc4 {[%clk 0:00:11]} 29. Qd2 {[%clk 0:00:17]}  d4 {[%clk 0:00:11]} 30. Kf3 {[%clk 0:00:17]}  d3 {[%clk 0:00:08]} 31. Ke3 {[%clk 0:00:17]}  Qb3 {[%clk 0:00:05]} 32. Qc3+ {[%clk 0:00:16]}  Qxc3 {[%clk 0:00:05]} 33. bxc3 {[%clk 0:00:16]}  Kf6 {[%clk 0:00:05]} 34. Kxd3 {[%clk 0:00:17]}  Ke5 {[%clk 0:00:05]} 35. f4+ {[%clk 0:00:16]}  Kd5 {[%clk 0:00:05]} 36. g4 {[%clk 0:00:16]}  f5 {[%clk 0:00:04]} 37. g5 {[%clk 0:00:15]}  Kc5 {[%clk 0:00:04]} 38. Kd2 {[%clk 0:00:14]}  Kc4 {[%clk 0:00:04]} 39. Kc2 {[%clk 0:00:15]}  Kc5 {[%clk 0:00:04]} 40. Kd2 {[%clk 0:00:14]}  Kd6 {[%clk 0:00:03]} 41. Kd3 {[%clk 0:00:14]}  Kd5 {[%clk 0:00:03]} 42. Kd2 {[%clk 0:00:12]}  Ke4 {[%clk 0:00:04]} 43. Kc2 {[%clk 0:00:12]}  Kxf4 {[%clk 0:00:04]} 44. Kb3 {[%clk 0:00:13]}  Kxg5 {[%clk 0:00:04]} 45. Kb4 {[%clk 0:00:13]}  f4 {[%clk 0:00:04]} 46. Kxb5 {[%clk 0:00:14]}  f3 {[%clk 0:00:05]} 47. c4 {[%clk 0:00:15]}  f2 {[%clk 0:00:06]} 48. c5 {[%clk 0:00:16]}  f1=Q+ {[%clk 0:00:06]} 49. Kb6 {[%clk 0:00:16]}  Qf8 {[%clk 0:00:07]} 50. c6 {[%clk 0:00:17]}  Kf4 {[%clk 0:00:07]} 51. c7 {[%clk 0:00:17]}  g5 {[%clk 0:00:07]} 52. Kb7 {[%clk 0:00:18]}  g4 {[%clk 0:00:07]} 53. c8=Q {[%clk 0:00:19]}  Qxc8+ {[%clk 0:00:08]} 54. Kxc8 {[%clk 0:00:20]}  g3 {[%clk 0:00:08]} 55. Kd7 {[%clk 0:00:21]}  g2 {[%clk 0:00:09]} 56. Ke6 {[%clk 0:00:22]}  g1=Q {[%clk 0:00:10]} 57. Kd5 {[%clk 0:00:23]}  Qe3 {[%clk 0:00:10]} 58. Kc4 {[%clk 0:00:23]}  Qd2 {[%clk 0:00:10]} 59. Kb3 {[%clk 0:00:24]}  Qc1 {[%clk 0:00:10]} 60. Ka2 {[%clk 0:00:25]}  Qc2+ {[%clk 0:00:09]} 61. Ka1 {[%clk 0:00:25]}  Qc3+ {[%clk 0:00:09]} 62. Ka2 {[%clk 0:00:25]}  Qc2+ {[%clk 0:00:09]} 63. Ka1 {[%clk 0:00:26]}  Qh2 {[%clk 0:00:09]} 64. Kb1 {[%clk 0:00:26]}  Ke4 {[%clk 0:00:09]} 65. Ka1 {[%clk 0:00:27]}  Kd4 {[%clk 0:00:10]} 66. Kb1 {[%clk 0:00:27]}  Kc3 {[%clk 0:00:11]} 67. Kc1 {[%clk 0:00:28]}  Qc2# {[%clk 0:00:11]} 0-1


[Site "https://www.chess.com"]

[Event "Titled Tuesday Blitz October 11 Early 2022"]
[White "Kodinets, Konstantin L."]
[Black "Mikhailovsky, Vladimir"]
[WhiteFideId "4122011"]
[BlackFideId "34105414"]
[WhiteElo "2447"]
[BlackElo "2297"]
[Result "0-1"]
[Round "09"]
[TimeControl "180+1"]
[Date "2022.10.12"]
[WhiteClock "0:01:27"]
[BlackClock "0:00:48"]

1. d4 {[%clk 0:02:59]}  d6 {[%clk 0:02:49]} 2. Nf3 {[%clk 0:02:59]}  g6 {[%clk 0:02:47]} 3. e4 {[%clk 0:02:52]}  Bg7 {[%clk 0:02:47]} 4. c3 {[%clk 0:02:52]}  Nc6 {[%clk 0:02:42]} 5. Bg5 {[%clk 0:02:51]}  Nf6 {[%clk 0:02:40]} 6. Nbd2 {[%clk 0:02:50]}  O-O {[%clk 0:02:41]} 7. Bc4 {[%clk 0:02:50]}  e5 {[%clk 0:02:39]} 8. dxe5 {[%clk 0:02:50]}  Nxe5 {[%clk 0:02:39]} 9. Nxe5 {[%clk 0:02:50]}  dxe5 {[%clk 0:02:39]} 10. O-O {[%clk 0:02:50]}  Qe7 {[%clk 0:02:40]} 11. Re1 {[%clk 0:02:50]}  Rd8 {[%clk 0:02:37]} 12. Qc2 {[%clk 0:02:42]}  h6 {[%clk 0:02:36]} 13. Bh4 {[%clk 0:02:41]}  Be6 {[%clk 0:02:35]} 14. Bxe6 {[%clk 0:02:39]}  Qxe6 {[%clk 0:02:36]} 15. Bxf6 {[%clk 0:02:39]}  Bxf6 {[%clk 0:02:36]} 16. Red1 {[%clk 0:02:37]}  Be7 {[%clk 0:02:33]} 17. Qb3 {[%clk 0:02:37]}  Qc6 {[%clk 0:02:27]} 18. a4 {[%clk 0:02:30]}  Bc5 {[%clk 0:02:23]} 19. Qb5 {[%clk 0:02:30]}  Qb6 {[%clk 0:02:00]} 20. Qxb6 {[%clk 0:02:27]}  axb6 {[%clk 0:02:00]} 21. Kf1 {[%clk 0:02:21]}  b5 {[%clk 0:01:53]} 22. b4 {[%clk 0:02:08]}  Be7 {[%clk 0:01:26]} 23. a5 {[%clk 0:02:03]}  Rd3 {[%clk 0:01:22]} 24. Nf3 {[%clk 0:02:02]}  Rxc3 {[%clk 0:01:20]} 25. Rd7 {[%clk 0:02:01]}  Bd6 {[%clk 0:01:12]} 26. Rd1 {[%clk 0:01:59]}  Rc4 {[%clk 0:01:05]} 27. R1xd6 {[%clk 0:01:58]}  cxd6 {[%clk 0:01:05]} 28. Rxd6 {[%clk 0:01:56]}  Rxb4 {[%clk 0:01:01]} 29. Rb6 {[%clk 0:01:56]}  Rxa5 {[%clk 0:00:58]} 30. g3 {[%clk 0:01:37]}  Rxe4 {[%clk 0:00:57]} 31. Rxb7 {[%clk 0:01:37]}  Ra3 {[%clk 0:00:55]} 32. Kg2 {[%clk 0:01:33]}  Re2 {[%clk 0:00:52]} 33. Rxb5 {[%clk 0:01:32]}  Raa2 {[%clk 0:00:52]} 34. Nxe5 {[%clk 0:01:27]}  Rxf2+ {[%clk 0:00:52]} 35. Kg1 {[%clk 0:01:27]}  Rfe2 {[%clk 0:00:48]} 0-1


[Site "https://www.chess.com"]

[Event "Titled Tuesday Blitz October 11 Early 2022"]
[White "Korchmar, Vasiliy"]
[Black "Aarav Dengla"]
[WhiteFideId "24131750"]
[BlackFideId "45059756"]
[WhiteElo "2370"]
[BlackElo "2257"]
[Result "0-1"]
[Round "09"]
[TimeControl "180+1"]
[Date "2022.10.12"]
[WhiteClock "0:00:19"]
[BlackClock "0:00:56"]

1. e4 {[%clk 0:03:00]}  c5 {[%clk 0:02:58]} 2. Nf3 {[%clk 0:03:01]}  d6 {[%clk 0:02:57]} 3. d4 {[%clk 0:03:01]}  cxd4 {[%clk 0:02:58]} 4. Nxd4 {[%clk 0:03:01]}  Nf6 {[%clk 0:02:58]} 5. Nc3 {[%clk 0:03:02]}  a6 {[%clk 0:02:59]} 6. f3 {[%clk 0:03:02]}  e5 {[%clk 0:02:57]} 7. Nb3 {[%clk 0:03:02]}  Be6 {[%clk 0:02:58]} 8. Be3 {[%clk 0:03:02]}  Be7 {[%clk 0:02:54]} 9. Qd2 {[%clk 0:03:02]}  O-O {[%clk 0:02:55]} 10. g4 {[%clk 0:03:02]}  d5 {[%clk 0:02:53]} 11. g5 {[%clk 0:02:59]}  d4 {[%clk 0:02:52]} 12. gxf6 {[%clk 0:02:50]}  Bxf6 {[%clk 0:02:53]} 13. O-O-O {[%clk 0:02:37]}  dxe3 {[%clk 0:02:46]} 14. Qxe3 {[%clk 0:02:35]}  Bg5 {[%clk 0:02:46]} 15. Rxd8 {[%clk 0:02:25]}  Bxe3+ {[%clk 0:02:44]} 16. Rd2 {[%clk 0:02:25]}  Nc6 {[%clk 0:02:41]} 17. Bd3 {[%clk 0:02:23]}  Bxb3 {[%clk 0:02:37]} 18. axb3 {[%clk 0:02:22]}  Nd4 {[%clk 0:02:37]} 19. Rf1 {[%clk 0:02:19]}  Rac8 {[%clk 0:02:33]} 20. Nd5 {[%clk 0:02:18]}  Bxd2+ {[%clk 0:02:30]} 21. Kxd2 {[%clk 0:02:18]}  Rfe8 {[%clk 0:02:30]} 22. b4 {[%clk 0:02:02]}  Rc6 {[%clk 0:02:25]} 23. c3 {[%clk 0:02:02]}  Ne6 {[%clk 0:02:20]} 24. b5 {[%clk 0:02:02]}  Rd6 {[%clk 0:02:19]} 25. bxa6 {[%clk 0:02:01]}  bxa6 {[%clk 0:02:19]} 26. Ra1 {[%clk 0:02:01]}  Ra8 {[%clk 0:02:12]} 27. b4 {[%clk 0:01:56]}  Nf4 {[%clk 0:02:08]} 28. Bc4 {[%clk 0:01:42]}  Rh6 {[%clk 0:01:55]} 29. Ke3 {[%clk 0:01:22]}  Rxh2 {[%clk 0:01:42]} 30. b5 {[%clk 0:01:07]}  Nxd5+ {[%clk 0:01:35]} 31. Bxd5 {[%clk 0:00:52]}  Rc8 {[%clk 0:01:32]} 32. c4 {[%clk 0:00:44]}  axb5 {[%clk 0:01:30]} 33. c5 {[%clk 0:00:45]}  h5 {[%clk 0:01:12]} 34. Ra7 {[%clk 0:00:42]}  Rxc5 {[%clk 0:01:09]} 35. Bxf7+ {[%clk 0:00:36]}  Kh7 {[%clk 0:01:09]} 36. Kd3 {[%clk 0:00:35]}  b4 {[%clk 0:01:07]} 37. Bc4 {[%clk 0:00:27]}  Rf2 {[%clk 0:01:02]} 38. Rf7 {[%clk 0:00:27]}  h4 {[%clk 0:01:02]} 39. Rf5 {[%clk 0:00:26]}  g6 {[%clk 0:00:59]} 40. Rf7+ {[%clk 0:00:25]}  Kh6 {[%clk 0:01:00]} 41. Rf8 {[%clk 0:00:25]}  Kg5 {[%clk 0:00:59]} 42. Ke3 {[%clk 0:00:23]}  Rb2 {[%clk 0:00:58]} 43. Kd3 {[%clk 0:00:20]}  h3 {[%clk 0:00:56]} 44. Rh8 {[%clk 0:00:19]}  h2 {[%clk 0:00:56]} 0-1


[Site "https://www.chess.com"]

[Event "Titled Tuesday Blitz October 11 Early 2022"]
[White "Kosteniuk, Alexandra"]
[Black "Samaganova, Aleksandra"]
[WhiteFideId "4128125"]
[BlackFideId "13800221"]
[WhiteElo "2469"]
[BlackElo "1864"]
[Result "1-0"]
[Round "09"]
[TimeControl "180+1"]
[Date "2022.10.12"]
[WhiteClock "0:00:31"]
[BlackClock "0:00:01"]

1. e4 {[%clk 0:03:00]}  c5 {[%clk 0:02:58]} 2. c3 {[%clk 0:03:00]}  d5 {[%clk 0:02:55]} 3. exd5 {[%clk 0:03:00]}  Qxd5 {[%clk 0:02:55]} 4. d4 {[%clk 0:03:00]}  Nf6 {[%clk 0:02:51]} 5. Nf3 {[%clk 0:03:00]}  Bf5 {[%clk 0:02:50]} 6. Be2 {[%clk 0:02:54]}  Bxb1 {[%clk 0:02:43]} 7. Rxb1 {[%clk 0:02:53]}  Nc6 {[%clk 0:02:43]} 8. c4 {[%clk 0:02:50]}  Qe4 {[%clk 0:02:40]} 9. d5 {[%clk 0:02:42]}  Nb4 {[%clk 0:02:25]} 10. Bd2 {[%clk 0:02:33]}  Nc2+ {[%clk 0:02:01]} 11. Kf1 {[%clk 0:02:32]}  Nd4 {[%clk 0:02:01]} 12. Nxd4 {[%clk 0:02:22]}  Qxd4 {[%clk 0:01:53]} 13. Qa4+ {[%clk 0:02:20]}  Nd7 {[%clk 0:01:51]} 14. Bc3 {[%clk 0:02:19]}  Qf4 {[%clk 0:01:46]} 15. Re1 {[%clk 0:02:14]}  h5 {[%clk 0:01:15]} 16. h4 {[%clk 0:02:10]}  Rh6 {[%clk 0:01:11]} 17. Bd3 {[%clk 0:01:35]}  Ra6 {[%clk 0:01:00]} 18. Qb3 {[%clk 0:01:33]}  O-O-O {[%clk 0:00:56]} 19. Rh3 {[%clk 0:01:27]}  Nf6 {[%clk 0:00:49]} 20. Be5 {[%clk 0:01:15]}  Qg4 {[%clk 0:00:43]} 21. Kg1 {[%clk 0:01:07]}  Nd7 {[%clk 0:00:36]} 22. Bh2 {[%clk 0:01:00]}  e5 {[%clk 0:00:24]} 23. Qc2 {[%clk 0:00:56]}  Rf6 {[%clk 0:00:11]} 24. Re4 {[%clk 0:00:49]}  Qg6 {[%clk 0:00:06]} 25. Rxe5 {[%clk 0:00:49]}  Qh6 {[%clk 0:00:06]} 26. Re1 {[%clk 0:00:46]}  Bd6 {[%clk 0:00:06]} 27. Bxd6 {[%clk 0:00:45]}  Rxd6 {[%clk 0:00:07]} 28. Rhe3 {[%clk 0:00:45]}  g6 {[%clk 0:00:06]} 29. b4 {[%clk 0:00:42]}  Qg7 {[%clk 0:00:05]} 30. a3 {[%clk 0:00:37]}  Qd4 {[%clk 0:00:05]} 31. Re4 {[%clk 0:00:37]}  Qf6 {[%clk 0:00:05]} 32. g3 {[%clk 0:00:36]}  b6 {[%clk 0:00:05]} 33. Bf1 {[%clk 0:00:34]}  Kc7 {[%clk 0:00:04]} 34. Bh3 {[%clk 0:00:34]}  Qg7 {[%clk 0:00:03]} 35. Re7 {[%clk 0:00:34]}  Qf6 {[%clk 0:00:03]} 36. Qa4 {[%clk 0:00:32]}  a5 {[%clk 0:00:01]} 37. bxc5 {[%clk 0:00:31]} 1-0


[Site "https://www.chess.com"]

[Event "Titled Tuesday Blitz October 11 Early 2022"]
[White "Kovalenko, Igor"]
[Black "Liyanage, Ranindu Dilshan"]
[WhiteFideId "14117908"]
[BlackFideId "9915834"]
[WhiteElo "2574"]
[BlackElo "2210"]
[Result "1-0"]
[Round "09"]
[TimeControl "180+1"]
[Date "2022.10.11"]
[WhiteClock "0:01:33"]
[BlackClock "0:00:21"]

1. c4 {[%clk 0:02:44]}  e6 {[%clk 0:02:57]} 2. Nc3 {[%clk 0:02:44]}  d5 {[%clk 0:02:56]} 3. d4 {[%clk 0:02:44]}  Bb4 {[%clk 0:02:53]} 4. e3 {[%clk 0:02:43]}  Nf6 {[%clk 0:02:46]} 5. Qa4+ {[%clk 0:02:42]}  Nc6 {[%clk 0:02:44]} 6. Nf3 {[%clk 0:02:41]}  O-O {[%clk 0:02:36]} 7. h3 {[%clk 0:02:41]}  Bd7 {[%clk 0:02:20]} 8. Qc2 {[%clk 0:02:40]}  dxc4 {[%clk 0:02:17]} 9. Bxc4 {[%clk 0:02:40]}  Bd6 {[%clk 0:02:18]} 10. a3 {[%clk 0:02:38]}  e5 {[%clk 0:02:17]} 11. O-O {[%clk 0:02:37]}  Qe7 {[%clk 0:02:05]} 12. b4 {[%clk 0:02:34]}  h6 {[%clk 0:01:41]} 13. Bb2 {[%clk 0:02:33]}  Rfe8 {[%clk 0:01:35]} 14. b5 {[%clk 0:02:11]}  Na5 {[%clk 0:01:30]} 15. Ba2 {[%clk 0:02:10]}  e4 {[%clk 0:01:28]} 16. Nd2 {[%clk 0:02:10]}  c6 {[%clk 0:01:13]} 17. f3 {[%clk 0:01:47]}  exf3 {[%clk 0:00:55]} 18. Rxf3 {[%clk 0:01:47]}  c5 {[%clk 0:00:48]} 19. Raf1 {[%clk 0:01:43]}  Rac8 {[%clk 0:00:22]} 20. Rxf6 {[%clk 0:01:42]}  gxf6 {[%clk 0:00:22]} 21. Qg6+ {[%clk 0:01:41]}  Kf8 {[%clk 0:00:20]} 22. Qxh6+ {[%clk 0:01:40]}  Kg8 {[%clk 0:00:21]} 23. Nd5 {[%clk 0:01:33]} 1-0


[Site "https://www.chess.com"]

[Event "Titled Tuesday Blitz October 11 Early 2022"]
[White "Koziorowicz, Michal"]
[Black "Sarana, Alexey"]
[WhiteFideId "21809194"]
[BlackFideId "24133795"]
[WhiteElo "2220"]
[BlackElo "2689"]
[Result "0-1"]
[Round "09"]
[TimeControl "180+1"]
[Date "2022.10.11"]
[WhiteClock "0:00:16"]
[BlackClock "0:00:09"]

1. e4 {[%clk 0:03:00]}  c5 {[%clk 0:02:59]} 2. Nf3 {[%clk 0:02:58]}  d6 {[%clk 0:02:59]} 3. Bb5+ {[%clk 0:02:59]}  Nd7 {[%clk 0:02:58]} 4. d4 {[%clk 0:02:58]}  cxd4 {[%clk 0:02:58]} 5. Qxd4 {[%clk 0:02:59]}  a6 {[%clk 0:02:58]} 6. Bxd7+ {[%clk 0:02:59]}  Bxd7 {[%clk 0:02:59]} 7. Nc3 {[%clk 0:02:59]}  e5 {[%clk 0:02:53]} 8. Qd3 {[%clk 0:02:59]}  Rc8 {[%clk 0:02:54]} 9. O-O {[%clk 0:02:58]}  Be6 {[%clk 0:02:52]} 10. Rd1 {[%clk 0:02:56]}  Be7 {[%clk 0:02:53]} 11. Nd5 {[%clk 0:02:30]}  Bxd5 {[%clk 0:02:51]} 12. exd5 {[%clk 0:02:31]}  Qc7 {[%clk 0:02:42]} 13. c3 {[%clk 0:02:28]}  Nf6 {[%clk 0:02:41]} 14. Nxe5 {[%clk 0:02:13]}  dxe5 {[%clk 0:02:33]} 15. d6 {[%clk 0:02:14]}  Bxd6 {[%clk 0:01:10]} 16. Qxd6 {[%clk 0:02:15]}  Qxd6 {[%clk 0:01:06]} 17. Rxd6 {[%clk 0:02:16]}  Ne4 {[%clk 0:01:06]} 18. Rb6 {[%clk 0:02:11]}  Rc7 {[%clk 0:01:05]} 19. Be3 {[%clk 0:02:11]}  Ke7 {[%clk 0:01:01]} 20. Re1 {[%clk 0:02:12]}  Nd6 {[%clk 0:00:43]} 21. Bg5+ {[%clk 0:01:31]}  f6 {[%clk 0:00:32]} 22. Rxe5+ {[%clk 0:01:31]}  Kd7 {[%clk 0:00:33]} 23. Rd5 {[%clk 0:01:31]}  Rc6 {[%clk 0:00:33]} 24. Be3 {[%clk 0:01:24]}  Rxb6 {[%clk 0:00:33]} 25. Bxb6 {[%clk 0:01:25]}  Kc6 {[%clk 0:00:33]} 26. Rd4 {[%clk 0:01:17]}  Re8 {[%clk 0:00:18]} 27. Kf1 {[%clk 0:01:17]}  Re5 {[%clk 0:00:12]} 28. Ba7 {[%clk 0:01:15]}  Re6 {[%clk 0:00:06]} 29. a4 {[%clk 0:01:14]}  b6 {[%clk 0:00:06]} 30. Bb8 {[%clk 0:01:10]}  Nf5 {[%clk 0:00:06]} 31. Rc4+ {[%clk 0:01:01]}  Kb7 {[%clk 0:00:06]} 32. Bf4 {[%clk 0:01:01]}  Re7 {[%clk 0:00:07]} 33. f3 {[%clk 0:00:48]}  h5 {[%clk 0:00:07]} 34. Kf2 {[%clk 0:00:48]}  Rd7 {[%clk 0:00:07]} 35. g4 {[%clk 0:00:45]}  hxg4 {[%clk 0:00:08]} 36. fxg4 {[%clk 0:00:46]}  Ne7 {[%clk 0:00:08]} 37. Rd4 {[%clk 0:00:38]}  Rxd4 {[%clk 0:00:05]} 38. cxd4 {[%clk 0:00:39]}  Kc6 {[%clk 0:00:06]} 39. Ke3 {[%clk 0:00:34]}  Kd5 {[%clk 0:00:07]} 40. Kd3 {[%clk 0:00:33]}  Nc6 {[%clk 0:00:06]} 41. Be3 {[%clk 0:00:29]}  Nb4+ {[%clk 0:00:07]} 42. Kc3 {[%clk 0:00:29]}  Nc6 {[%clk 0:00:07]} 43. Bg1 {[%clk 0:00:23]}  Ne7 {[%clk 0:00:02]} 44. Kd3 {[%clk 0:00:19]}  Ng6 {[%clk 0:00:02]} 45. Be3 {[%clk 0:00:19]}  Ne7 {[%clk 0:00:02]} 46. h3 {[%clk 0:00:19]}  Nc6 {[%clk 0:00:03]} 47. Bf2 {[%clk 0:00:18]}  b5 {[%clk 0:00:03]} 48. axb5 {[%clk 0:00:18]}  axb5 {[%clk 0:00:04]} 49. h4 {[%clk 0:00:19]}  Nb4+ {[%clk 0:00:04]} 50. Kc3 {[%clk 0:00:19]}  Nc6 {[%clk 0:00:04]} 51. h5 {[%clk 0:00:18]}  Ke4 {[%clk 0:00:04]} 52. Bh4 {[%clk 0:00:15]}  Ne7 {[%clk 0:00:04]} 53. Kb4 {[%clk 0:00:14]}  Kf4 {[%clk 0:00:05]} 54. h6 {[%clk 0:00:13]}  gxh6 {[%clk 0:00:05]} 55. Bxf6 {[%clk 0:00:14]}  Nd5+ {[%clk 0:00:05]} 56. Kxb5 {[%clk 0:00:14]}  Nxf6 {[%clk 0:00:06]} 57. Kc4 {[%clk 0:00:15]}  Nxg4 {[%clk 0:00:06]} 58. b4 {[%clk 0:00:15]}  Nf6 {[%clk 0:00:06]} 59. b5 {[%clk 0:00:15]}  h5 {[%clk 0:00:06]} 60. Kd3 {[%clk 0:00:13]}  h4 {[%clk 0:00:06]} 61. Ke2 {[%clk 0:00:13]}  Nd5 {[%clk 0:00:06]} 62. Kf1 {[%clk 0:00:13]}  Kg3 {[%clk 0:00:06]} 63. Kg1 {[%clk 0:00:13]}  h3 {[%clk 0:00:07]} 64. Kh1 {[%clk 0:00:14]}  Nb6 {[%clk 0:00:05]} 65. d5 {[%clk 0:00:14]}  Nxd5 {[%clk 0:00:05]} 66. Kg1 {[%clk 0:00:14]}  Kg4 {[%clk 0:00:05]} 67. Kh2 {[%clk 0:00:14]}  Kh4 {[%clk 0:00:06]} 68. Kh1 {[%clk 0:00:15]}  Kg3 {[%clk 0:00:07]} 69. Kg1 {[%clk 0:00:15]}  h2+ {[%clk 0:00:07]} 70. Kh1 {[%clk 0:00:16]}  Nf4 {[%clk 0:00:08]} 71. b6 {[%clk 0:00:15]}  Nh3 {[%clk 0:00:09]} 72. b7 {[%clk 0:00:16]}  Nf2# {[%clk 0:00:09]} 0-1


[Site "https://www.chess.com"]